bitfinex/quotes_SOLUSD_20241110
["timestamp","ask_amount","ask_price","bid_price","bid_amount"]
[1731252271773,15.4581406,208.05,207.94,6.1029]
[1731252272049,15.4581406,208.06,207.98,15.4581406]
[1731252272255,12.0137,208.1,208.0,15.4581406]
[1731252272256,15.4581406,208.08,208.0,15.4581406]
[1731252272564,4.8051,208.11,208.0,15.4581406]
[1731252272565,15.4581406,208.07,208.0,15.4581406]
[1731252272852,15.4581406,208.05,207.98,15.4581406]
[1731252273238,15.4581406,208.05,207.97,15.4581406]
[1731252273435,15.4581406,208.05,207.98,15.4581406]
[1731252273859,15.4581406,208.1,207.94,12.0226]
[1731252273860,15.4581406,208.04,207.94,12.0226]
[1731252274061,15.4581406,208.04,207.96,15.4581406]
[1731252274244,15.4581406,208.02,207.94,27.4807406]
[1731252274445,15.4581406,208.01,207.94,27.4807406]
[1731252275066,15.4581406,208.01,207.83,0.1]
[1731252275067,15.4581406,207.97,207.82,16.8414]
[1731252275255,15.4581406,207.97,207.89,15.4581406]
[1731252275548,15.4581406,207.99,207.92,15.4581406]
[1731252276448,15.4581406,207.99,207.9,15.4581406]
[1731252276652,15.4581406,207.95,207.88,15.4581406]
[1731252276857,15.4581406,207.95,207.86,4.8107]
[1731252276858,15.4581406,207.94,207.86,4.8107]
[1731252277061,15.4581406,207.94,207.86,15.4581406]
[1731252277269,15.4581406,207.89,207.81,15.4581406]
[1731252277675,15.4581406,207.9,207.82,15.4581406]
[1731252278750,15.4581406,207.9,207.82,20.2698406]
[1731252278949,20.5061,207.91,207.85,15.4581406]
[1731252279263,31.1543406,207.91,207.83,15.4581406]
[1731252279451,15.4581406,207.89,207.83,15.4581406]
[1731252279766,15.4581406,207.89,207.82,12.0296]
[1731252279767,15.4581406,207.89,207.82,15.4581406]
[1731252279965,35.9643406,207.91,207.83,15.4581406]
[1731252280346,31.1543406,207.96,207.89,15.4581406]
[1731252280547,35.9630406,207.96,207.89,15.4581406]
[1731252280760,35.9630406,207.96,207.88,15.4581406]
[1731252281060,35.9630406,207.96,207.89,15.4581406]
[1731252281363,35.9630406,207.96,207.84,23.776884]
[1731252281364,15.4581406,207.95,207.87,15.4581406]
[1731252281753,20.2671406,207.94,207.86,15.4581406]
[1731252281951,15.4581406,207.89,207.82,15.4581406]
[1731252282169,15.4581406,207.9,207.82,15.4581406]
[1731252282366,15.4581406,207.87,207.8,15.4581406]
[1731252282667,15.4581406,207.85,207.78,27.4898406]
[1731252282856,15.4581406,207.86,207.78,27.4898406]
[1731252283169,21.8520406,207.89,207.82,15.4581406]
[1731252283550,21.8520406,207.89,207.81,15.4581406]
[1731252284167,15.4581406,207.87,207.8,15.4581406]
[1731252284559,15.4581406,207.83,207.74,12.0342]
[1731252284759,15.4581406,207.83,207.75,15.4581406]
[1731252285098,15.4581406,207.82,207.75,15.4581406]
[1731252285570,4.812,207.81,207.74,15.4581406]
[1731252285771,20.2701406,207.81,207.74,15.4581406]
[1731252285976,4.812,207.81,207.74,15.4581406]
[1731252286567,4.812,207.81,207.75,15.4581406]
[1731252286774,30.9881406,207.83,207.72,4.814]
[1731252286775,15.53,207.83,207.8,15.4581406]
[1731252286981,15.53,207.83,207.79,15.4581406]
[1731252287157,15.53,207.83,207.75,15.4581406]
[1731252287158,35.7997406,207.83,207.75,15.4581406]
[1731252287353,20.3416,207.83,207.72,16.8494]
[1731252287553,20.3416,207.83,207.72,12.0354]
[1731252288260,15.4581406,207.82,207.75,15.4581406]
[1731252288472,20.3416,207.83,207.78,15.4581406]
[1731252288778,20.3416,207.83,207.79,15.4581406]
[1731252289372,20.2687406,207.87,207.73,12.0348]
[1731252289555,15.4581406,207.81,207.74,15.4581406]
[1731252289754,15.4581406,207.8,207.73,15.4581406]
[1731252290150,15.4581406,207.78,207.71,15.4581406]
[1731252290550,15.4581406,207.78,207.69,12.0371]
[1731252290551,4.813,207.77,207.72,15.4581406]
[1731252290769,4.813,207.77,207.73,15.4581406]
[1731252290973,4.813,207.77,207.72,15.4581406]
[1731252291363,4.8126,207.79,207.73,15.4581406]
[1731252291553,20.2707406,207.79,207.72,15.4581406]
[1731252292350,4.8126,207.79,207.72,15.4581406]
[1731252293375,4.8126,207.79,207.73,15.4581406]
[1731252293869,15.4581406,207.83,207.76,15.4581406]
[1731252294469,15.4581406,207.81,207.74,15.4581406]
[1731252294775,16.8382,207.86,207.65,40.934]
[1731252294776,15.4581406,207.75,207.65,12.0394]
[1731252294979,15.4581406,207.75,207.68,15.4581406]
[1731252295561,15.4581406,207.73,207.66,15.4581406]
[1731252295777,15.53,207.76,207.59,4.817]
[1731252295778,15.4581406,207.7,207.59,4.817]
[1731252296073,15.4581406,207.71,207.64,15.4581406]
[1731252296281,15.4581406,207.73,207.66,15.4581406]
[1731252296471,4.8134,207.75,207.6,15.4581406]
[1731252296472,15.4581406,207.72,207.65,15.4581406]
[1731252296774,15.4581406,207.72,207.64,15.4581406]
[1731252297458,15.4581406,207.67,207.6,15.4581406]
[1731252297658,4.8157,207.65,207.58,15.4581406]
[1731252297857,4.8157,207.65,207.54,12.0457]
[1731252297858,15.4581406,207.63,207.56,15.4581406]
[1731252298070,15.4581406,207.64,207.57,15.4581406]
[1731252298958,15.4581406,207.6,207.53,15.4581406]
[1731252299158,15.4581406,207.59,207.51,15.4581406]
[1731252299455,15.4581406,207.61,207.52,15.4581406]
[1731252299671,30.9881406,207.63,207.56,15.4581406]
[1731252299869,4.8164,207.62,207.56,15.4581406]
[1731252300061,4.8164,207.62,207.55,15.4581406]
[1731252300273,20.2745406,207.62,207.54,15.4581406]
[1731252301057,15.53,207.63,207.6,15.4581406]
[1731252301260,15.53,207.63,207.61,15.4581406]
[1731252301472,4.8159,207.65,207.61,15.4581406]
[1731252301653,6.5701,207.66,207.61,15.4581406]
[1731252301866,11.3857,207.66,207.62,15.4581406]
[1731252303969,4.8154,207.67,207.63,15.4581406]
[1731252304684,20.3448,207.69,207.65,15.4581406]
[1731252304887,20.3448,207.69,207.58,16.8608]
[1731252304888,20.3448,207.69,207.66,15.4581406]
[1731252305062,15.53,207.69,207.66,15.4581406]
[1731252305559,20.3449,207.69,207.66,15.4581406]
[1731252305982,15.53,207.69,207.66,15.4581406]
[1731252306364,4.8123,207.8,207.68,15.4581406]
[1731252306687,4.8123,207.8,207.65,23.776884]
[1731252306688,15.4581406,207.78,207.65,23.776884]
[1731252306976,15.4581406,207.77,207.7,15.4581406]
[1731252307609,15.4581406,207.78,207.71,15.4581406]
[1731252307769,15.4581406,207.79,207.72,15.4581406]
[1731252308081,15.4581406,207.79,207.71,15.4581406]
[1731252308483,20.2704406,207.8,207.73,15.4581406]
[1731252308867,4.8123,207.8,207.73,15.4581406]
[1731252309264,15.4581406,207.79,207.67,4.8151]
[1731252309579,15.4581406,207.74,207.67,15.4581406]
[1731252309782,15.4581406,207.73,207.65,15.4581406]
[1731252309989,15.4581406,207.74,207.66,15.4581406]
[1731252310569,32.3011406,207.8,207.61,16.8583]
[1731252310570,15.4581406,207.76,207.68,15.4581406]
[1731252310766,4.8134,207.75,207.69,15.4581406]
[1731252310980,20.2715406,207.75,207.68,15.4581406]
[1731252311284,20.2715406,207.75,207.67,15.4581406]
[1731252311492,15.4581406,207.68,207.5,6.3073]
[1731252311675,15.4581406,207.62,207.51,4.819]
[1731252311875,16.2314,207.69,207.51,16.8666]
[1731252311876,15.4581406,207.65,207.51,16.8666]
[1731252312074,16.1314,207.69,207.51,16.8666]
[1731252312478,15.4581406,207.64,207.56,15.4581406]
[1731252312790,4.8162,207.63,207.56,25.31952636]
[1731252313089,23.876884,207.68,207.59,25.31952636]
[1731252313090,25.31952636,207.66,207.59,25.31952636]
[1731252313291,4.8151,207.68,207.58,25.31952636]
[1731252313598,4.8151,207.68,207.53,16.8648]
[1731252313599,25.31952636,207.62,207.53,12.0464]
[1731252313887,25.31952636,207.62,207.55,25.31952636]
[1731252314391,25.31952636,207.64,207.56,25.31952636]
[1731252314575,16.8528,207.68,207.53,16.8649]
[1731252314576,25.31952636,207.66,207.58,25.31952636]
[1731252314775,4.8151,207.68,207.61,25.31952636]
[1731252315131,4.8151,207.68,207.57,12.0436]
[1731252315132,4.8151,207.68,207.64,25.31952636]
[1731252315280,6.6296,207.71,207.65,25.31952636]
[1731252315594,4.8143,207.72,207.66,25.31952636]
[1731252315774,4.8143,207.72,207.65,25.31952636]
[1731252315976,4.8143,207.72,207.58,23.776884]
[1731252315977,25.31952636,207.7,207.62,25.31952636]
[1731252316173,25.31952636,207.69,207.62,25.31952636]
[1731252316403,25.31952636,207.68,207.61,25.31952636]
[1731252316601,25.31952636,207.69,207.62,25.31952636]
[1731252316892,25.31952636,207.7,207.62,25.31952636]
[1731252317072,25.31952636,207.66,207.53,43.776884]
[1731252317272,25.31952636,207.66,207.59,25.31952636]
[1731252317482,25.31952636,207.67,207.6,25.31952636]
[1731252317889,25.31952636,207.68,207.6,25.31952636]
[1731252318593,0.1,207.72,207.6,25.31952636]
[1731252318594,25.31952636,207.72,207.65,25.31952636]
[1731252319096,25.31952636,207.72,207.64,25.31952636]
[1731252319276,25.31952636,207.72,207.53,23.876884]
[1731252319277,25.31952636,207.68,207.6,25.31952636]
[1731252319475,25.31952636,207.67,207.59,25.31952636]
[1731252319896,25.31952636,207.65,207.52,12.0469]
[1731252320199,25.31952636,207.65,207.57,25.31952636]
[1731252320491,4.816,207.64,207.57,25.31952636]
[1731252320695,4.816,207.64,207.58,25.31952636]
[1731252320884,4.816,207.64,207.56,4.8178]
[1731252320885,25.31952636,207.69,207.62,25.31952636]
[1731252321082,6.562,207.7,207.57,23.776884]
[1731252321391,25.31952636,207.72,207.64,25.31952636]
[1731252321704,25.31952636,207.72,207.65,25.31952636]
[1731252321996,25.31952636,207.72,207.6,25.31952636]
[1731252321997,25.31952636,207.73,207.66,25.31952636]
[1731252322183,25.31952636,207.72,207.64,25.31952636]
[1731252322370,4.8137,207.74,207.44,4.794]
[1731252322371,4.8148,207.69,207.62,25.31952636]
[1731252322577,30.13432636,207.69,207.58,4.8172]
[1731252322773,25.31952636,207.68,207.6,25.31952636]
[1731252323192,25.31952636,207.65,207.58,25.31952636]
[1731252323389,25.31952636,207.64,207.57,25.31952636]
[1731252324297,25.31952636,207.63,207.55,25.31952636]
[1731252324596,25.31952636,207.63,207.52,16.8651]
[1731252324597,25.31952636,207.65,207.58,25.31952636]
[1731252324781,25.31952636,207.65,207.53,16.8649]
[1731252324782,25.31952636,207.7,207.54,20.0]
[1731252324986,25.31952636,207.6,207.51,4.8189]
[1731252325194,15.3169,207.61,207.54,25.31952636]
[1731252325496,15.3169,207.61,207.56,25.31952636]
[1731252326205,20.1338,207.61,207.56,25.31952636]
[1731252326598,12.0382,207.68,207.58,25.31952636]
[1731252326599,40.63642636,207.66,207.58,25.31952636]
[1731252326806,4.8157,207.65,207.6,25.31952636]
[1731252330505,31.55062636,207.68,207.6,25.31952636]
[1731252330506,4.8153,207.67,207.6,25.31952636]
[1731252330806,4.8153,207.67,207.62,25.31952636]
[1731252331190,4.8153,207.67,207.57,16.8617]
[1731252331191,4.8153,207.67,207.61,25.31952636]
[1731252331392,4.8153,207.67,207.6,25.31952636]
[1731252332105,30.13482636,207.67,207.59,25.31952636]
[1731252332884,20.39273374,207.67,207.59,15.57743374]
[1731252333287,20.39273374,207.67,207.55,4.818]
[1731252333494,20.39273374,207.67,207.54,23.776884]
[1731252333696,20.39273374,207.67,207.58,15.57743374]
[1731252333887,15.57743374,207.65,207.58,15.57743374]
[1731252334315,15.57743374,207.64,207.52,4.8188]
[1731252334603,15.57743374,207.62,207.54,15.57743374]
[1731252334805,15.57743374,207.64,207.56,15.57743374]
[1731252335192,15.57743374,207.62,207.54,15.57743374]
[1731252335391,15.57743374,207.58,207.51,15.57743374]
[1731252335606,15.3169,207.59,207.53,15.57743374]
[1731252335607,4.8176,207.57,207.53,15.57743374]
[1731252335794,20.1342,207.59,207.54,15.57743374]
[1731252336408,20.1342,207.59,207.55,15.57743374]
[1731252336709,15.57743374,207.57,207.49,15.57743374]
[1731252337419,15.57743374,207.56,207.49,15.57743374]
[1731252338296,6.2311,207.57,207.5,15.57743374]
[1731252338499,6.2311,207.57,207.49,15.57743374]
[1731252338695,15.57743374,207.56,207.49,15.57743374]
[1731252338893,4.8181,207.55,207.49,15.57743374]
[1731252339500,20.39553374,207.55,207.47,15.57743374]
[1731252339690,15.57743374,207.53,207.46,15.57743374]
[1731252339912,15.57743374,207.53,207.45,15.57743374]
[1731252340518,15.57743374,207.54,207.47,15.57743374]
[1731252340692,20.39553374,207.55,207.47,15.57743374]
[1731252341299,4.8181,207.55,207.49,15.57743374]
[1731252341502,4.8181,207.55,207.36,0.1]
[1731252341503,15.57743374,207.51,207.32,0.1]
[1731252341700,15.57743374,207.51,207.14,4.794]
[1731252341701,15.57743374,207.51,207.43,15.57743374]
[1731252341904,16.8633,207.55,207.36,12.0561]
[1731252341905,15.57743374,207.48,207.36,12.0561]
[1731252342499,0.1,207.53,207.4,15.57743374]
[1731252342500,15.57743374,207.47,207.4,15.57743374]
[1731252342823,15.57743374,207.48,207.4,15.57743374]
[1731252342996,15.57743374,207.48,207.36,12.0561]
[1731252342997,15.57743374,207.46,207.39,15.57743374]
[1731252343199,15.57743374,207.41,207.25,0.1]
[1731252343401,15.57743374,207.41,207.22,6.4564]
[1731252343402,15.57743374,207.41,207.32,15.57743374]
[1731252343710,15.57743374,207.41,207.34,15.57743374]
[1731252343912,15.57743374,207.39,207.24,4.9253]
[1731252344212,15.57743374,207.41,207.33,15.57743374]
[1731252344413,4.8216,207.4,207.34,15.57743374]
[1731252344619,4.8216,207.4,207.35,15.57743374]
[1731252344795,6.2311,207.44,207.39,15.57743374]
[1731252344993,11.0518,207.44,207.39,15.57743374]
[1731252345214,11.0518,207.44,207.37,15.57743374]
[1731252345614,15.57743374,207.42,207.34,15.57743374]
[1731252346115,15.57743374,207.42,207.3,4.8238]
[1731252346116,15.57743374,207.42,207.35,15.57743374]
[1731252346419,4.8211,207.42,207.36,15.57743374]
[1731252346714,6.2311,207.44,207.38,15.57743374]
[1731252346919,6.2311,207.44,207.34,4.8229]
[1731252346920,11.0519,207.44,207.39,15.57743374]
[1731252347095,15.57743374,207.42,207.28,12.0605]
[1731252347294,15.57743374,207.42,207.35,15.57743374]
[1731252347513,11.0519,207.44,207.28,16.8848]
[1731252347815,11.0519,207.44,207.37,15.57743374]
[1731252348410,4.8202,207.46,207.4,15.57743374]
[1731252348907,4.8202,207.46,207.37,4.8221]
[1731252348908,15.57743374,207.45,207.37,15.57743374]
[1731252349114,20.39763374,207.46,207.39,15.57743374]
[1731252349706,4.8202,207.46,207.4,15.57743374]
[1731252350018,15.3169,207.47,207.44,15.57743374]
[1731252350224,11.401,207.49,207.45,15.57743374]
[1731252350399,4.819,207.51,207.47,15.57743374]
[1731252350602,4.819,207.51,207.45,15.57743374]
[1731252351202,20.39643374,207.51,207.34,20.0]
[1731252351409,15.57743374,207.5,207.42,15.57743374]
[1731252351614,20.39643374,207.51,207.34,20.0]
[1731252353211,15.369,207.52,207.48,15.57743374]
[1731252353398,6.5814,207.54,207.49,15.57743374]
[1731252353611,20.1864,207.58,207.53,15.57743374]
[1731252353808,20.1864,207.58,207.54,15.57743374]
[1731252354023,4.8174,207.58,207.44,4.8205]
[1731252354207,15.369,207.53,207.33,0.1]
[1731252354409,15.369,207.53,207.33,0.2]
[1731252354622,15.369,207.53,207.34,6.4409]
[1731252355223,15.57743374,207.51,207.43,15.57743374]
[1731252355603,4.8174,207.58,207.5,15.57743374]
[1731252355807,15.369,207.6,207.43,0.1]
[1731252355808,20.1859,207.6,207.54,15.57743374]
[1731252356226,15.57743374,207.59,207.49,12.0485]
[1731252356415,20.1859,207.6,207.53,15.57743374]
[1731252356726,15.57743374,207.59,207.51,15.57743374]
[1731252357042,20.1859,207.6,207.53,15.57743374]
[1731252357416,15.369,207.6,207.53,15.57743374]
[1731252358931,20.1861,207.6,207.53,15.57743374]
[1731252359405,15.57743374,207.57,207.47,15.57743374]
[1731252359610,20.1861,207.6,207.47,15.57743374]
[1731252359611,15.57743374,207.55,207.47,15.57743374]
[1731252359915,35.76353374,207.6,207.44,12.0514]
[1731252359916,15.57743374,207.51,207.44,12.0514]
[1731252360115,15.57743374,207.53,207.45,15.57743374]
[1731252360327,20.39613374,207.53,207.45,15.57743374]
[1731252360733,15.57743374,207.55,207.47,15.57743374]
[1731252361426,20.39453374,207.59,207.51,15.57743374]
[1731252361809,4.8171,207.59,207.53,15.57743374]
[1731252362019,15.369,207.6,207.55,15.57743374]
[1731252362328,15.369,207.6,207.54,15.57743374]
[1731252362527,15.369,207.6,207.53,4.8184]
[1731252362528,15.369,207.6,207.56,15.57743374]
[1731252362839,15.369,207.65,207.58,15.57743374]
[1731252363136,15.57743374,207.64,207.57,15.57743374]
[1731252363430,15.369,207.65,207.59,15.57743374]
[1731252363637,20.1849,207.65,207.59,15.57743374]
[1731252364228,15.57743374,207.66,207.59,15.57743374]
[1731252364412,15.57743374,207.62,207.55,15.57743374]
[1731252364616,15.57743374,207.61,207.54,15.57743374]
[1731252365029,11.3968,207.67,207.57,15.57743374]
[1731252365223,15.57743374,207.64,207.57,15.57743374]
[1731252365427,15.57743374,207.64,207.56,15.57743374]
[1731252365638,4.8162,207.63,207.56,15.57743374]
[1731252365846,15.57743374,207.62,207.55,15.57743374]
[1731252366042,15.57743374,207.61,207.53,27.62343374]
[1731252366331,15.57743374,207.59,207.51,15.57743374]
[1731252366720,15.57743374,207.55,207.44,16.8719]
[1731252366938,15.57743374,207.56,207.48,15.57743374]
[1731252367225,15.57743374,207.55,207.46,15.57743374]
[1731252367721,4.8183,207.54,207.46,15.57743374]
[1731252368940,4.8183,207.54,207.48,15.57743374]
[1731252369414,21.76233374,207.56,207.49,15.57743374]
[1731252369415,11.0028,207.56,207.49,15.57743374]
[1731252369616,11.0028,207.56,207.5,15.57743374]
[1731252369815,11.0028,207.56,207.49,15.57743374]
[1731252370015,4.8179,207.56,207.5,15.57743374]
[1731252370611,15.3271,207.59,207.54,15.57743374]
[1731252370814,6.1849,207.61,207.57,15.57743374]
[1731252371022,15.57743374,207.63,207.55,15.57743374]
[1731252374333,20.39473374,207.59,207.51,15.57743374]
[1731252374532,15.57743374,207.57,207.5,15.57743374]
[1731252375435,4.8176,207.57,207.51,15.57743374]
[1731252375930,15.3271,207.65,207.55,15.57743374]
[1731252375931,15.57743374,207.63,207.55,15.57743374]
[1731252376319,15.57743374,207.62,207.54,15.57743374]
[1731252376521,15.57743374,207.62,207.55,15.57743374]
[1731252377422,4.8167,207.61,207.55,15.57743374]
[1731252379538,20.143,207.65,207.6,15.57743374]
[1731252379841,35.71923374,207.7,207.63,15.57743374]
[1731252380145,15.57743374,207.68,207.6,15.57743374]
[1731252380531,15.57743374,207.68,207.55,16.8632]
[1731252380731,4.8142,207.72,207.63,15.57743374]
[1731252380933,15.57743374,207.78,207.71,15.57743374]
[1731252381142,16.61763574,207.81,207.74,15.57743374]
[1731252381319,16.61763574,207.81,207.68,0.1]
[1731252381320,1.040202,207.81,207.68,0.1]
[1731252381638,1.040202,207.81,207.71,20.0]
[1731252381841,1.040202,207.81,207.7,23.776884]
[1731252381842,1.040202,207.81,207.73,20.0]
[1731252382146,1.040202,207.81,207.77,20.0]
[1731252382441,1.040202,207.81,207.8,74.93175148]
[1731252382848,1.040202,207.81,207.8,15.57743374]
[1731252383419,1.040202,207.81,207.76,6.6042]
[1731252383621,1.040202,207.81,207.8,15.57743374]
[1731252386037,1.040202,207.81,207.8,74.93175148]
[1731252386620,1.040202,207.81,207.8,59.35431774]
[1731252387341,1.040202,207.81,207.8,15.57743374]
[1731252387853,1.040202,207.81,207.79,4.8124]
[1731252388028,1.040202,207.81,207.79,15.57743374]
[1731252388522,1.040202,207.81,207.8,15.57743374]
[1731252388931,1.040202,207.81,207.8,31.15486748]
[1731252389644,1.040202,207.81,207.8,74.93175148]
[1731252389847,15.57743374,207.96,207.81,43.776884]
[1731252390172,15.862,207.99,207.81,43.776884]
[1731252390173,20.38583374,207.97,207.89,15.57743374]
[1731252390525,15.57743374,207.96,207.89,15.57743374]
[1731252390836,15.57743374,207.98,207.91,15.57743374]
[1731252391023,15.862,207.99,207.93,15.57743374]
[1731252391226,26.99263374,208.02,207.95,15.57743374]
[1731252391447,15.57743374,208.01,207.94,15.57743374]
[1731252392849,15.57743374,208.0,207.93,15.57743374]
[1731252393042,4.8075,208.01,207.94,15.57743374]
[1731252393043,15.57743374,208.01,207.94,15.57743374]
[1731252393445,15.57743374,207.98,207.91,15.57743374]
[1731252393649,15.57743374,207.97,207.9,15.57743374]
[1731252394051,15.57743374,208.0,207.93,15.57743374]
[1731252394348,4.8075,208.01,207.93,4.8092]
[1731252394349,15.57743374,207.99,207.93,4.8092]
[1731252394559,15.57743374,208.0,207.93,20.38663374]
[1731252395635,20.38533374,208.0,207.93,15.57743374]
[1731252396340,15.57743374,208.01,207.94,15.57743374]
[1731252396931,15.57743374,208.0,207.93,20.38653374]
[1731252397862,15.57743374,208.0,207.94,15.57743374]
[1731252398037,20.38493374,208.01,207.94,15.57743374]
[1731252398239,15.57743374,208.02,207.93,4.8091]
[1731252398435,16.11659573,208.07,207.99,15.57743374]
[1731252398436,15.57743374,208.06,207.99,15.57743374]
[1731252398752,20.38333374,208.08,208.01,15.57743374]
[1731252398972,15.57743374,208.04,207.97,15.57743374]
[1731252399153,15.57743374,208.02,207.95,15.57743374]
[1731252399349,31.43943374,208.1,207.93,16.8323]
[1731252399657,15.57743374,208.01,207.94,15.57743374]
[1731252399861,15.57743374,208.02,207.94,15.57743374]
[1731252400059,15.57743374,208.0,207.93,27.60063374]
[1731252400253,23.876884,208.09,207.93,27.60063374]
[1731252400254,15.57743374,207.99,207.93,12.0232]
[1731252400833,15.57743374,208.0,207.93,27.60063374]
[1731252401351,20.38523374,208.0,207.93,27.60063374]
[1731252401756,15.57743374,208.0,207.94,15.57743374]
[1731252401960,15.57743374,208.01,207.94,15.57743374]
[1731252402140,20.38473374,208.02,207.95,15.57743374]
[1731252402453,15.57743374,208.0,207.93,12.0232]
[1731252402764,15.57743374,207.96,207.89,15.57743374]
[1731252403058,15.57743374,207.93,207.86,15.57743374]
[1731252403953,15.57743374,207.92,207.85,20.38833374]
[1731252404338,15.57743374,207.98,207.91,15.57743374]
[1731252404543,15.57743374,207.98,207.9,15.57743374]
[1731252404747,31.43943374,207.99,207.92,15.57743374]
[1731252404950,15.57743374,207.99,207.92,15.57743374]
[1731252405449,15.57743374,208.0,207.93,4.8093]
[1731252405668,15.57743374,208.0,207.93,20.38673374]
[1731252406039,15.57743374,208.06,207.99,15.57743374]
[1731252406560,15.57743374,208.07,208.0,15.57743374]
[1731252406858,20.38293374,208.1,208.03,15.57743374]
[1731252407248,15.57743374,208.09,208.02,15.57743374]
[1731252407462,15.57743374,208.06,207.98,20.0]
[1731252407762,15.57743374,208.0,207.93,15.57743374]
[1731252408145,15.57743374,207.99,207.92,16.8332]
[1731252408447,15.57743374,207.97,207.92,12.0237]
[1731252409860,15.57743374,207.97,207.9,15.57743374]
[1731252410059,15.57743374,208.04,207.96,15.57743374]
[1731252410366,15.57743374,208.06,207.98,15.57743374]
[1731252410576,15.57743374,208.03,207.96,15.57743374]
[1731252410771,4.8061,208.07,207.95,15.57743374]
[1731252411057,15.57743374,208.01,207.91,20.0]
[1731252411263,15.57743374,208.01,207.95,20.0]
[1731252411560,15.57743374,208.0,207.93,15.57743374]
[1731252411951,15.57743374,208.0,207.93,20.38663374]
[1731252412452,20.38513374,208.0,207.93,20.38663374]
[1731252412684,15.57743374,207.97,207.9,27.60243374]
[1731252413861,15.57743374,207.97,207.9,32.41243374]
[1731252414054,15.57743374,207.93,207.87,4.8106]
[1731252414261,6.3013,208.04,207.92,15.57743374]
[1731252414462,6.3013,208.04,207.87,4.8106]
[1731252414463,6.3013,208.05,207.87,12.0267]
[1731252414767,0.22549,207.94,207.72,16.8495]
[1731252414943,0.1,207.91,207.72,16.8495]
[1731252415546,15.57743374,207.83,207.75,15.57743374]
[1731252416171,15.57743374,207.83,207.76,4.8132]
[1731252416366,15.57743374,207.81,207.76,4.8132]
[1731252417065,15.57743374,207.81,207.74,24.8136]
[1731252417363,17.50069474,207.9,207.78,20.0]
[1731252417364,15.57743374,207.85,207.78,20.0]
[1731252418156,15.57743374,207.85,207.79,4.8125]
[1731252418955,15.57743374,207.85,207.79,24.8125]
[1731252419473,15.57743374,207.86,207.79,40.38993374]
[1731252420196,15.57743374,207.83,207.77,4.8129]
[1731252420374,15.57743374,207.9,207.77,4.8129]
[1731252420375,15.57743374,207.82,207.77,4.8129]
[1731252421448,15.57743374,207.83,207.77,4.8129]
[1731252423278,12.0238,207.93,207.77,4.8129]
[1731252423279,4.809,207.94,207.83,43.776884]
[1731252423482,15.57743374,207.92,207.85,15.57743374]
[1731252423646,15.57743374,207.91,207.85,43.776884]
[1731252424356,15.57743374,207.91,207.85,48.587784]
[1731252424857,15.5452,208.0,207.9,15.57743374]
[1731252425062,15.57743374,207.97,207.9,15.57743374]
[1731252425259,15.57743374,208.01,207.94,15.57743374]
[1731252425458,15.57743374,208.0,207.87,0.1]
[1731252425671,21.8819,208.07,207.85,90.802084]
[1731252426054,15.57743374,207.98,207.91,15.57743374]
[1731252426252,16.922,208.06,207.91,15.57743374]
[1731252426253,15.57743374,207.97,207.91,20.0]
[1731252426478,15.57743374,207.97,207.91,24.8097]
[1731252426875,15.57743374,207.98,207.91,20.38713374]
[1731252427178,15.57743374,208.01,207.94,15.57743374]
[1731252427382,15.57743374,208.04,207.97,15.57743374]
[1731252427557,15.57743374,208.07,207.99,15.57743374]
[1731252427759,15.57743374,208.07,207.94,15.6046]
[1731252427760,15.57743374,208.08,208.01,15.57743374]
[1731252427950,4.8052,208.11,207.96,0.1]
[1731252427951,4.8047,208.13,207.97,43.776884]
[1731252428371,15.57743374,208.09,208.02,15.57743374]
[1731252429382,15.57743374,208.09,208.02,20.38443374]
[1731252430058,15.57743374,208.1,208.03,15.57743374]
[1731252430379,15.57743374,208.09,208.03,15.57743374]
[1731252431460,15.57743374,208.1,208.03,20.38433374]
[1731252432064,15.57743374,208.1,208.04,15.57743374]
[1731252432577,15.57743374,208.1,208.03,32.40173374]
[1731252432782,6.3367,208.2,208.09,15.57743374]
[1731252432980,15.57743374,208.18,208.11,15.57743374]
[1731252433153,15.57743374,208.18,208.12,15.57743374]
[1731252433352,15.57743374,208.19,208.12,20.38213374]
[1731252433581,15.57743374,208.2,208.14,15.57743374]
[1731252433787,4.8019,208.25,208.18,35.57743374]
[1731252433788,25.04894704,208.25,208.18,35.57743374]
[1731252433960,9.4715133,208.25,208.19,15.57743374]
[1731252434166,9.4715133,208.25,208.2,15.57743374]
[1731252434566,15.57743374,208.26,208.2,15.57743374]
[1731252434763,15.57743374,208.26,208.19,15.57743374]
[1731252434973,15.57743374,208.26,208.2,15.57743374]
[1731252435161,15.57743374,208.27,208.2,15.57743374]
[1731252435357,20.37873374,208.28,208.21,15.57743374]